bitfinex-derivatives/quotes_ETHF0:USTF0_20260118
["timestamp","ask_amount","ask_price","bid_price","bid_amount"]
[1768708996160,1.00502409,3317.8,3316.8,0.15413265]
[1768708996357,1.00502409,3317.7,3316.8,0.15413265]
[1768708996559,0.27769875,3317.9,3316.8,0.15413265]
[1768708996761,1.00472185,3317.8,3316.8,0.15413265]
[1768708996958,1.00472185,3317.7,3316.8,0.15413265]
[1768708997267,0.27769875,3317.9,3316.8,0.15413265]
[1768708997468,1.00448415,3317.8,3316.8,0.15413265]
[1768708997763,1.00448415,3317.7,3316.8,0.15413265]
[1768708998066,1.00448415,3317.6,3316.8,0.15413265]
[1768708998266,0.27769875,3317.9,3316.8,0.15413265]
[1768708998567,1.00422432,3317.8,3316.8,0.15413265]
[1768708998768,1.00422432,3317.7,3316.8,0.15413265]
[1768708998969,0.27769875,3317.9,3316.8,0.15413265]
[1768708999171,1.00421267,3317.8,3316.8,0.15413265]
[1768708999369,1.00421267,3317.7,3316.8,0.15413265]
[1768708999573,0.27769875,3317.9,3316.8,0.15413265]
[1768708999773,1.00399004,3317.8,3316.8,0.15413265]
[1768708999974,1.00399004,3317.7,3316.8,0.15413265]
[1768709000178,0.27769875,3317.9,3316.8,0.15413265]
[1768709000368,1.00398987,3317.8,3316.8,0.15413265]
[1768709000563,1.00398987,3317.7,3316.8,0.15413265]
[1768709000769,0.27769875,3317.9,3316.8,0.15413265]
[1768709000974,1.00380857,3317.8,3316.8,0.15413265]
[1768709001170,1.00380857,3317.7,3316.8,0.15413265]
[1768709001371,0.27769875,3317.9,3316.8,0.15413265]
[1768709001674,1.00366544,3317.8,3316.8,0.15413265]
[1768709001984,1.00366544,3317.7,3316.8,0.15413265]
[1768709002165,0.27769875,3317.9,3316.8,0.15413265]
[1768709002361,1.00366523,3317.8,3316.8,0.15413265]
[1768709002561,1.00366523,3317.7,3316.8,0.15413265]
[1768709002767,0.27769875,3317.9,3316.8,0.15413265]
[1768709002978,1.00354738,3317.8,3316.8,0.15413265]
[1768709003276,0.27769875,3317.9,3316.8,0.15413265]
[1768709003474,1.00348223,3317.8,3316.8,0.15413265]
[1768709003775,0.27769875,3317.9,3316.8,0.15413265]
[1768709004172,1.00348614,3317.8,3316.8,0.15413265]
[1768709004375,0.27769875,3317.9,3316.8,0.15413265]
[1768709004575,1.00345555,3317.8,3316.8,0.15413265]
[1768709004776,0.27769875,3317.9,3316.8,0.15413265]
[1768709005078,1.00344922,3317.8,3316.8,0.15413265]
[1768709005277,0.27769875,3317.9,3316.8,0.15413265]
[1768709005477,1.00345803,3317.8,3316.8,0.15413265]
[1768709005679,0.27769875,3317.9,3316.8,0.15413265]
[1768709005870,1.00345819,3317.8,3316.8,0.15413265]
[1768709006071,0.27769875,3317.9,3316.8,0.15413265]
[1768709006272,1.00345819,3317.8,3316.8,0.15413265]
[1768709006479,0.27769875,3317.9,3316.8,0.15413265]
[1768709006683,1.00348688,3317.8,3316.8,0.15413265]
[1768709006977,0.27769875,3317.9,3316.8,0.15413265]
[1768709007179,1.00348687,3317.8,3316.8,0.15413265]
[1768709007384,1.00354534,3317.7,3316.8,0.15413265]
[1768709007579,0.27769875,3317.9,3316.8,0.15413265]
[1768709007780,1.00354514,3317.8,3316.8,1.12339849]
[1768709007979,1.00354514,3317.7,3316.8,1.12339849]
[1768709008280,0.27769875,3317.9,3316.8,1.12339849]
[1768709008482,1.0036361,3317.8,3316.8,1.12339849]
[1768709008676,1.0036361,3317.7,3316.8,1.12339849]
[1768709008877,0.27769875,3317.9,3316.8,1.12339849]
[1768709009083,1.00363612,3317.8,3316.8,1.12339849]
[1768709009283,1.00363612,3317.7,3316.8,1.12339849]
[1768709009483,0.27769875,3317.9,3316.8,1.12339849]
[1768709009784,1.00376068,3317.8,3316.8,1.12339849]
[1768709010080,1.00376068,3317.7,3316.8,1.12339849]
[1768709010282,0.27769875,3317.9,3316.8,1.12339849]
[1768709010485,1.00379086,3317.8,3316.8,1.12339849]
[1768709010693,1.00379086,3317.7,3316.8,1.12339849]
[1768709010895,0.27769875,3317.9,3316.8,1.12339849]
[1768709011194,1.00378504,3317.8,3316.8,1.12339849]
[1768709011393,1.00378504,3317.7,3316.8,1.12339849]
[1768709011691,0.27769875,3317.9,3316.8,0.15413265]
[1768709011893,1.00394288,3317.8,3316.8,1.12339849]
[1768709012095,1.00394288,3317.7,3316.8,1.12339849]
[1768709012296,0.27769875,3317.9,3316.8,1.12339849]
[1768709012495,1.0041288,3317.8,3316.8,1.12339849]
[1768709012696,1.0041288,3317.7,3316.8,1.12339849]
[1768709012897,0.27769875,3317.9,3316.8,1.12339849]
[1768709013096,1.00413412,3317.8,3316.8,1.12339849]
[1768709013296,1.00413412,3317.7,3316.8,1.12339849]
[1768709013500,0.27769875,3317.9,3316.8,1.12339849]
[1768709013696,1.0043644,3317.8,3316.8,1.12339849]
[1768709013897,1.0043644,3317.7,3316.8,1.12339849]
[1768709014093,0.27769875,3317.9,3316.8,1.12339849]
[1768709014396,1.0043639,3317.8,3316.8,1.12339849]
[1768709014595,1.0043639,3317.7,3316.8,1.12339849]
[1768709014797,1.0043639,3317.6,3316.8,1.12339849]
[1768709014998,0.27769875,3317.9,3316.8,1.12339849]
[1768709015196,1.00464237,3317.8,3316.8,1.12339849]
[1768709015396,1.00464237,3317.7,3316.8,1.12339849]
[1768709015597,1.00464237,3317.6,3316.8,1.12339849]
[1768709015896,0.27769875,3317.9,3316.8,1.12339849]
[1768709016098,1.00493234,3317.8,3316.8,1.12339849]
[1768709016296,1.00493234,3317.7,3316.8,1.12339849]
[1768709016497,1.00493234,3317.6,3316.8,1.12339849]
[1768709016797,0.27769875,3317.9,3316.8,1.12339849]
[1768709016991,1.00529201,3317.8,3316.8,1.12339849]
[1768709017188,1.00529201,3317.7,3316.8,1.12339849]
[1768709017388,1.00529201,3317.6,3316.8,1.12339849]
[1768709017600,1.00529201,3317.5,3316.8,1.12339849]
[1768709017801,0.27769875,3317.9,3316.8,1.12339849]
[1768709018100,1.0057363,3317.8,3316.8,1.12339849]
[1768709018302,1.0057363,3317.7,3316.8,1.12339849]
[1768709018502,1.0057363,3317.6,3316.8,1.12339849]
[1768709018704,0.27769875,3317.9,3316.8,1.12339849]
[1768709018705,1.0057363,3317.5,3316.8,1.12339849]
[1768709018900,0.27769875,3317.9,3316.8,1.12339849]
[1768709019198,1.00632028,3317.8,3316.8,1.12339849]
[1768709019400,1.00632028,3317.7,3316.8,0.15413265]
[1768709019599,1.00632028,3317.6,3316.8,0.15413265]
[1768709019802,1.00632028,3317.5,3316.8,0.15413265]
[1768709020099,1.00632028,3317.4,3316.8,0.15413265]
[1768709020299,0.27769875,3317.9,3316.8,0.15413265]
[1768709020620,1.00750573,3317.8,3316.8,0.15413265]
[1768709020801,1.00750573,3317.7,3316.8,0.15413265]
[1768709021104,1.00750573,3317.6,3316.8,0.15413265]
[1768709021302,1.00750573,3317.5,3316.8,0.15413265]
[1768709021508,1.00750573,3317.4,3316.8,0.15413265]
[1768709021803,0.27769875,3317.9,3316.8,0.15413265]
[1768709021997,1.00793589,3317.8,3316.8,0.15413265]
[1768709022198,1.00793589,3317.7,3316.8,0.15413265]
[1768709022403,1.00793589,3317.6,3316.8,0.15413265]
[1768709022707,1.00793589,3317.5,3316.8,0.15413265]
[1768709023007,1.00793589,3317.4,3316.8,0.15413265]
[1768709023304,0.27769875,3317.9,3316.8,0.15413265]
[1768709023507,1.00707264,3317.8,3316.8,0.15413265]
[1768709023696,1.00707264,3317.7,3316.8,0.15413265]
[1768709023899,1.00707264,3317.6,3316.8,0.15413265]
[1768709024196,1.00707264,3317.5,3316.8,0.15413265]
[1768709024497,1.00707264,3317.4,3316.8,0.15413265]
[1768709024697,0.27769875,3317.9,3316.8,0.15413265]
[1768709024893,1.00478318,3317.8,3316.8,0.15413265]
[1768709025097,1.00478318,3317.7,3316.8,0.15413265]
[1768709025304,1.00478318,3317.6,3316.8,0.15413265]
[1768709025504,1.00478318,3317.5,3316.8,0.15413265]
[1768709025703,1.00478318,3317.4,3316.8,0.15413265]
[1768709025907,0.27769875,3317.9,3316.8,0.15413265]
[1768709026107,1.0048369,3317.8,3316.8,0.15413265]
[1768709026312,1.0048369,3317.7,3316.8,0.15413265]
[1768709026501,1.0048369,3317.6,3316.8,0.15413265]
[1768709026701,1.0048369,3317.5,3316.8,0.15413265]
[1768709026901,1.0048369,3317.4,3316.8,0.15413265]
[1768709027202,0.27769875,3317.9,3316.8,0.15413265]
[1768709027404,1.00349534,3317.8,3316.8,0.15413265]
[1768709027604,1.00349534,3317.7,3316.8,0.15413265]
[1768709027904,1.00349534,3317.6,3316.8,0.15413265]
[1768709028214,0.27769875,3317.9,3316.8,0.15413265]
[1768709028510,1.00301965,3317.8,3316.8,0.15413265]
[1768709030914,1.30114577,3317.8,3316.8,0.15413265]
[1768709031109,1.00301965,3317.7,3316.8,0.15413265]
[1768709036224,0.29812612,3317.8,3316.8,0.15413265]
[1768709036419,1.00300159,3317.7,3316.8,0.15413265]
[1768709036716,1.00300159,3317.6,3316.8,0.15413265]
[1768709036909,1.00300159,3317.5,3316.8,0.15413265]
[1768709037110,1.00300159,3317.4,3316.8,0.15413265]
[1768709037316,1.00300159,3317.3,3316.8,0.15413265]
[1768709037518,0.29812612,3317.8,3316.8,0.15413265]
[1768709037707,1.31148245,3317.7,3316.8,0.15413265]
[1768709037904,1.00298821,3317.6,3316.8,0.15413265]
[1768709041023,1.31148245,3317.6,3316.8,0.15413265]
[1768709041222,1.00298821,3317.5,3316.8,0.15413265]
[1768709041422,1.00298821,3317.4,3316.8,0.15413265]
[1768709041624,1.00298821,3317.3,3316.8,0.15413265]
[1768709041819,0.30849424,3317.6,3316.8,0.15413265]
[1768709042114,1.00296868,3317.5,3316.8,0.15413265]
[1768709042315,1.00296868,3317.4,3316.8,0.15413265]
[1768709042516,1.00296868,3317.3,3316.8,0.15413265]
[1768709042716,0.30849424,3317.6,3316.8,0.15413265]
[1768709042922,1.00295551,3317.5,3316.8,0.15413265]
[1768709043125,1.00295551,3317.4,3316.8,0.15413265]
[1768709043326,0.30849424,3317.6,3316.8,0.15413265]
[1768709043527,1.00295322,3317.5,3316.8,0.15413265]
[1768709043828,1.00295322,3317.4,3316.8,0.15413265]
[1768709044029,1.00295322,3317.3,3316.8,0.15413265]
[1768709044330,0.30849424,3317.6,3316.8,0.15413265]
[1768709044628,1.00295328,3317.5,3316.8,0.15413265]
[1768709044827,1.00295328,3317.4,3316.8,0.15413265]
[1768709045125,1.00295328,3317.3,3316.8,0.15413265]
[1768709045323,0.30849424,3317.6,3316.8,0.15413265]
[1768709045524,1.00295184,3317.5,3316.8,0.15413265]
[1768709045724,1.00295184,3317.4,3316.8,0.15413265]
[1768709046026,1.00295184,3317.3,3316.8,0.15413265]
[1768709046231,0.30849424,3317.6,3316.8,0.15413265]
[1768709046417,1.00294818,3317.5,3316.8,0.15413265]
[1768709046613,1.00294818,3317.4,3316.8,0.15413265]
[1768709046812,1.00294818,3317.3,3316.8,0.15413265]
[1768709047021,0.30849424,3317.6,3316.8,0.15413265]
[1768709047226,1.00294606,3317.5,3316.8,0.15413265]
[1768709047426,1.00294606,3317.4,3316.8,0.15413265]
[1768709047622,1.00294606,3317.3,3316.8,0.15413265]
[1768709047825,0.30849424,3317.6,3316.8,0.15413265]
[1768709048020,1.00294579,3317.5,3316.8,0.15413265]
[1768709048223,1.00294579,3317.4,3316.8,0.15413265]
[1768709048422,1.00294579,3317.3,3316.8,0.15413265]
[1768709048622,0.30849424,3317.6,3316.8,0.15413265]
[1768709048827,1.00294427,3317.5,3316.8,0.15413265]
[1768709049022,1.00294427,3317.4,3316.8,0.15413265]
[1768709049221,1.00294427,3317.3,3316.8,0.15413265]
[1768709049422,0.30849424,3317.6,3316.8,0.15413265]
[1768709049637,1.00294355,3317.5,3316.8,0.15413265]
[1768709049830,1.00294355,3317.4,3316.8,0.15413265]
[1768709050031,1.00294355,3317.3,3316.8,0.15413265]
[1768709050329,0.30849424,3317.6,3316.8,0.15413265]
[1768709050628,1.00294453,3317.5,3316.8,0.15413265]
[1768709050828,1.00294453,3317.4,3316.8,0.15413265]
[1768709051030,0.30849424,3317.6,3316.8,0.15413265]
[1768709051227,1.00293762,3317.5,3316.8,0.15413265]
[1768709051427,1.00293762,3317.4,3316.8,0.15413265]
[1768709051729,0.30849424,3317.6,3316.8,0.15413265]
[1768709051929,1.00294459,3317.5,3316.8,0.15413265]
[1768709052125,1.00294459,3317.4,3316.8,0.15413265]
[1768709052324,0.30849424,3317.6,3316.8,0.15413265]
[1768709052524,1.00294825,3317.5,3316.8,0.15413265]
[1768709052725,1.00294825,3317.4,3316.8,0.15413265]
[1768709053022,0.30849424,3317.6,3316.8,0.15413265]
[1768709053221,1.00295046,3317.5,3316.8,0.15413265]
[1768709053427,1.00295046,3317.4,3316.8,0.15413265]
[1768709053630,0.30849424,3317.6,3316.8,0.15413265]
[1768709053831,0.9951505,3317.5,3316.8,0.15413265]
[1768709054026,0.9951505,3317.4,3316.8,0.15413265]
[1768709054326,0.30849424,3317.6,3316.8,0.15413265]
[1768709054625,0.99515704,3317.5,3316.8,0.15413265]
[1768709054825,0.99515704,3317.4,3316.8,0.15413265]
[1768709055026,0.30849424,3317.6,3316.8,0.15413265]
[1768709055228,0.99515924,3317.5,3316.8,0.15413265]
[1768709055434,0.99515924,3317.4,3316.8,0.15413265]
[1768709055628,0.30849424,3317.6,3316.8,0.15413265]
[1768709055828,0.9951645,3317.5,3316.8,0.15413265]
[1768709056030,0.9951645,3317.4,3316.8,0.15413265]
[1768709056236,0.30849424,3317.6,3316.8,0.15413265]
[1768709056438,0.99517338,3317.5,3316.8,0.15413265]
[1768709056737,0.99517338,3317.4,3316.8,0.15413265]
[1768709056933,0.30849424,3317.6,3316.8,0.15413265]
[1768709057135,0.99517342,3317.5,3316.8,0.15413265]
[1768709057335,0.99517342,3317.4,3316.8,0.15413265]
[1768709057537,0.30849424,3317.6,3316.8,0.15413265]
[1768709057838,0.99518089,3317.5,3316.8,0.15413265]
[1768709058032,0.99518089,3317.4,3316.8,0.15413265]
[1768709058342,0.30849424,3317.6,3316.8,0.15413265]
[1768709058641,0.99519657,3317.5,3316.8,0.15413265]
[1768709058840,0.99519657,3317.4,3316.8,0.15413265]
[1768709059140,0.30849424,3317.6,3316.8,0.15413265]
[1768709059349,0.99519659,3317.5,3316.8,0.15413265]
[1768709059539,0.99519659,3317.4,3316.8,0.15413265]
[1768709059739,0.30849424,3317.6,3316.8,0.15413265]
[1768709059939,0.99521162,3317.5,3316.8,0.15413265]
[1768709060142,0.99521162,3317.4,3316.8,0.15413265]
[1768709060329,0.30849424,3317.6,3316.8,0.15413265]
[1768709060534,0.99523048,3317.5,3316.8,0.15413265]
[1768709060735,0.99523048,3317.4,3316.8,0.15413265]
[1768709061030,0.30849424,3317.6,3316.8,0.15413265]
[1768709061235,0.99523189,3317.5,3316.8,0.15413265]
[1768709061432,0.99523189,3317.4,3316.8,0.15413265]
[1768709061636,0.30849424,3317.6,3316.8,0.15413265]
[1768709061837,0.99523115,3317.5,3316.8,0.15413265]
[1768709062041,0.99523115,3317.4,3316.8,0.15413265]
[1768709062247,0.30849424,3317.6,3316.8,0.15413265]
[1768709062448,0.99523267,3317.5,3316.8,0.15413265]
[1768709062643,0.99523267,3317.4,3316.8,0.15413265]
[1768709062845,0.30849424,3317.6,3316.8,0.15413265]
[1768709063043,0.99523264,3317.5,3316.8,0.15413265]
[1768709063247,0.99523264,3317.4,3316.8,0.15413265]
[1768709063447,0.30849424,3317.6,3316.8,0.15413265]
[1768709063637,0.99523396,3317.5,3316.8,0.15413265]
[1768709063843,0.99523396,3317.4,3316.8,0.15413265]
[1768709064052,0.30849424,3317.6,3316.8,0.15413265]
[1768709064250,0.99523729,3317.5,3316.8,0.15413265]
[1768709064550,0.99523729,3317.4,3316.8,0.15413265]
[1768709064749,0.30849424,3317.6,3316.8,0.15413265]
[1768709064949,0.995231,3317.5,3316.8,0.15413265]
[1768709065143,0.995231,3317.4,3316.8,0.15413265]
[1768709065343,0.30849424,3317.6,3316.8,0.15413265]
[1768709065643,0.99523654,3317.5,3316.8,0.15413265]
[1768709065843,0.99523654,3317.4,3316.8,0.15413265]
[1768709066046,0.30849424,3317.6,3316.8,0.15413265]
[1768709066258,0.99523692,3317.5,3316.8,0.15413265]
[1768709066438,0.99523692,3317.4,3316.8,0.15413265]
[1768709066642,0.30849424,3317.6,3316.8,0.15413265]
[1768709066871,0.99523156,3317.5,3316.8,0.15413265]
[1768709067061,0.99523156,3317.4,3316.8,0.15413265]
[1768709067259,0.30849424,3317.6,3316.8,0.15413265]
[1768709067460,0.99523009,3317.5,3316.8,0.15413265]
[1768709067671,0.99523009,3317.4,3316.8,0.15413265]
[1768709067868,0.30849424,3317.6,3316.8,0.15413265]
[1768709068167,0.99523013,3317.5,3316.8,0.15413265]
[1768709068367,0.99523013,3317.4,3316.8,0.15413265]
[1768709068565,0.30849424,3317.6,3316.8,0.15413265]
[1768709068766,0.99522946,3317.5,3316.8,0.15413265]
[1768709068966,0.99522946,3317.4,3316.8,0.15413265]
[1768709069165,0.30849424,3317.6,3316.8,0.15413265]
[1768709069473,0.99523026,3317.5,3316.8,0.15413265]
[1768709069669,0.99523026,3317.4,3316.8,0.15413265]
[1768709069968,0.30849424,3317.6,3316.8,0.15413265]
[1768709070168,0.99523149,3317.5,3316.8,0.15413265]
[1768709070369,0.99523149,3317.4,3316.8,0.15413265]
[1768709070571,0.30849424,3317.6,3316.8,0.15413265]
[1768709070869,0.99523205,3317.5,3316.8,0.15413265]
[1768709071073,0.99523205,3317.4,3316.8,0.15413265]
[1768709071271,0.30849424,3317.6,3316.8,0.15413265]
[1768709071476,0.99523347,3317.5,3316.8,0.15413265]
[1768709071782,0.99523347,3317.4,3316.8,0.15413265]
[1768709071964,0.30849424,3317.6,3316.8,0.15413265]
[1768709072167,0.99523398,3317.5,3316.8,0.15413265]
[1768709072365,0.99523398,3317.4,3316.8,0.15413265]
[1768709072576,0.30849424,3317.6,3316.8,0.15413265]
[1768709072783,0.9952348,3317.5,3316.8,0.15413265]
[1768709072971,0.9952348,3317.4,3316.8,0.15413265]
[1768709073168,0.30849424,3317.6,3316.8,0.15413265]
[1768709073368,0.99523588,3317.5,3316.8,0.15413265]
[1768709073582,0.99523588,3317.4,3316.8,0.15413265]
[1768709073865,0.30849424,3317.6,3316.8,0.15413265]
[1768709074061,0.99523566,3317.5,3316.8,0.15413265]
[1768709074266,0.99523566,3317.4,3316.8,0.15413265]
[1768709074466,0.30849424,3317.6,3316.8,0.15413265]
[1768709074668,0.99523627,3317.5,3316.8,0.15413265]
[1768709074966,0.99523627,3317.4,3316.8,0.15413265]
[1768709075172,0.30849424,3317.6,3316.8,0.15413265]
[1768709075371,0.99523917,3317.5,3316.8,0.15413265]
[1768709075670,0.99523917,3317.4,3316.8,0.15413265]
[1768709075870,0.30849424,3317.6,3316.8,0.15413265]
[1768709076067,0.99523952,3317.5,3316.8,0.15413265]
[1768709076264,0.99523952,3317.4,3316.8,0.15413265]
[1768709076482,0.30849424,3317.6,3316.8,0.15413265]
[1768709076781,0.99524291,3317.5,3316.8,0.15413265]
[1768709076975,0.99524291,3317.4,3316.8,0.15413265]
[1768709077179,0.30849424,3317.6,3316.8,0.15413265]
[1768709077473,0.99524538,3317.5,3316.8,0.15413265]
[1768709077674,0.99524538,3317.4,3316.8,0.15413265]
[1768709077874,0.30849424,3317.6,3316.8,0.15413265]
[1768709078077,0.99524542,3317.5,3316.8,0.15413265]
[1768709078273,0.99524542,3317.4,3316.8,0.15413265]
[1768709078474,0.30849424,3317.6,3316.8,0.15413265]
[1768709078674,0.99524817,3317.5,3316.8,0.15413265]
[1768709078880,0.99524817,3317.4,3316.8,0.15413265]
[1768709079082,0.30849424,3317.6,3316.8,0.15413265]
[1768709079281,0.99525137,3317.5,3316.8,0.15413265]
[1768709079479,0.30849424,3317.6,3316.8,0.15413265]
[1768709079480,0.99525137,3317.4,3316.8,0.15413265]
[1768709079680,0.30849424,3317.6,3316.8,0.15413265]
[1768709079882,0.99525141,3317.5,3316.8,0.15413265]
[1768709080077,0.99525141,3317.4,3316.8,0.15413265]
[1768709080277,0.30849424,3317.6,3316.8,0.15413265]
[1768709080480,0.99525863,3317.5,3316.8,0.15413265]
[1768709080676,0.99525863,3317.4,3316.8,0.15413265]
[1768709080884,0.30849424,3317.6,3316.8,0.15413265]
[1768709081078,0.99525844,3317.5,3316.8,0.15413265]
[1768709081385,0.99525844,3317.4,3316.8,0.15413265]
[1768709081683,0.30849424,3317.6,3316.8,0.15413265]
[1768709081874,0.99525901,3317.5,3316.8,0.15413265]
[1768709082077,0.99525901,3317.4,3316.8,0.15413265]
[1768709082276,0.30849424,3317.6,3316.8,0.15413265]
[1768709082477,0.99525841,3317.5,3316.8,0.15413265]
[1768709082676,0.99525841,3317.4,3316.4,0.12445781]
[1768709082877,0.30849424,3317.6,3316.4,0.12445781]
[1768709083074,0.99525839,3317.5,3316.4,0.12445781]
[1768709083281,0.99525839,3317.4,3316.4,0.12445781]
[1768709083485,0.30849424,3317.6,3316.4,0.12445781]
[1768709083688,0.99358686,3317.5,3316.8,0.15079]
[1768709083980,0.99358686,3317.4,3316.8,0.15079]
[1768709084186,0.30849424,3317.6,3316.8,0.15079]
[1768709084480,0.99358682,3317.5,3316.8,0.15079]
[1768709084684,0.99358682,3317.4,3316.8,0.15079]
[1768709084884,0.30849424,3317.6,3316.8,0.15079]
[1768709085087,0.99358686,3317.5,3316.8,0.15079]
[1768709085274,0.99358686,3317.4,3316.8,0.15079]
[1768709085470,0.30849424,3317.6,3316.8,0.15079]
[1768709085673,0.99358667,3317.5,3316.8,0.15079]
[1768709085887,0.99358667,3317.4,3316.8,0.15079]
[1768709086093,0.30849424,3317.6,3316.8,0.15079]
[1768709086386,0.99358663,3317.5,3316.8,0.15079]
[1768709086587,0.99358663,3317.4,3316.8,0.15079]
[1768709086780,0.30849424,3317.6,3316.8,0.15079]
[1768709087084,0.99358666,3317.5,3316.8,0.15079]
[1768709087279,0.99358666,3317.4,3316.8,0.15079]
[1768709087480,0.30849424,3317.6,3316.8,0.15079]
[1768709087683,0.9935868,3317.5,3316.8,0.15079]
[1768709087878,0.9935868,3317.4,3316.8,0.15079]
[1768709088079,0.30849424,3317.6,3316.8,0.15079]
[1768709088380,0.99358679,3317.5,3316.8,0.15079]
[1768709088586,0.99358679,3317.4,3316.8,0.15079]
[1768709088785,0.30849424,3317.6,3316.8,0.15079]
[1768709088986,0.99358682,3317.5,3316.8,0.15079]
[1768709089186,0.99358682,3317.4,3316.8,0.15079]
[1768709089385,0.30849424,3317.6,3316.8,0.15079]
[1768709089588,0.99358722,3317.5,3316.8,0.15079]
[1768709089791,0.99358722,3317.4,3316.8,0.15079]
[1768709089986,0.30849424,3317.6,3316.8,0.15079]
[1768709090187,0.99358708,3317.5,3316.8,0.15079]
[1768709090387,0.99358708,3317.4,3316.8,0.15079]
[1768709090586,0.30849424,3317.6,3316.8,0.15079]
[1768709090790,0.99358796,3317.5,3316.8,0.15079]
[1768709091084,0.99358796,3317.4,3316.8,0.15079]
[1768709091289,0.30849424,3317.6,3316.8,0.15079]
[1768709091493,0.99358865,3317.5,3316.8,0.15079]
[1768709091691,0.99358865,3317.4,3316.8,0.15079]
[1768709091894,0.30849424,3317.6,3316.8,0.15079]
[1768709092191,0.9935887,3317.5,3316.8,0.15079]
[1768709092391,0.9935887,3317.4,3316.8,0.15079]
[1768709092592,0.30849424,3317.6,3316.8,0.15079]
[1768709092794,0.99359113,3317.5,3316.8,0.15079]
[1768709092994,0.99359113,3317.4,3316.8,0.15079]
[1768709093195,0.30849424,3317.6,3316.8,0.15079]
[1768709093497,0.99359106,3317.5,3316.8,0.15079]
[1768709093699,0.99359106,3317.4,3316.8,0.15079]
[1768709093996,0.30849424,3317.6,3316.8,0.15079]
[1768709094296,0.99359117,3317.5,3316.8,0.15079]
[1768709094496,0.99359117,3317.4,3316.8,0.15079]
[1768709094695,0.30849424,3317.6,3316.8,0.15079]
[1768709094895,0.99359115,3317.5,3316.8,0.15079]
[1768709095089,0.99359115,3317.4,3316.8,0.15079]
[1768709095290,0.30849424,3317.6,3316.8,0.15079]
[1768709095488,0.99359147,3317.5,3316.8,0.15079]
[1768709095687,0.99359147,3317.4,3316.8,0.15079]
[1768709095889,0.30849424,3317.6,3316.8,0.15079]
[1768709096089,0.99359164,3317.5,3316.8,0.15079]
[1768709096289,0.99359164,3317.4,3316.8,0.15079]
[1768709096493,0.30849424,3317.6,3316.8,0.15079]
[1768709096699,0.99359167,3317.5,3316.8,0.15079]
[1768709096997,0.99359167,3317.4,3316.8,0.15079]
[1768709097200,0.30849424,3317.6,3316.8,0.15079]
[1768709097399,0.99359511,3317.5,3316.8,0.15079]
[1768709097589,0.99359511,3317.4,3316.8,0.15079]
[1768709097790,0.30849424,3317.6,3316.8,0.15079]
[1768709097999,0.99359509,3317.5,3316.8,0.15079]
[1768709098192,0.99359509,3317.4,3316.8,0.15079]
[1768709098491,0.30849424,3317.6,3316.8,0.15079]
[1768709098699,0.99359568,3317.5,3316.8,0.15079]
[1768709098900,0.99359568,3317.4,3316.8,0.15079]
[1768709099092,0.30849424,3317.6,3316.8,0.15079]
[1768709099400,0.99359644,3317.5,3316.8,0.15079]
[1768709099598,0.99359644,3317.4,3316.8,0.15079]
[1768709099786,0.30849424,3317.6,3316.8,0.15079]
[1768709099992,0.99359617,3317.5,3316.8,0.15079]
[1768709100189,0.99359617,3317.4,3316.8,0.15079]
[1768709100394,0.30849424,3317.6,3316.8,0.15079]
[1768709100606,0.99359644,3317.5,3316.8,0.15079]
[1768709100892,0.99359644,3317.4,3316.8,0.15079]
[1768709101091,0.30849424,3317.6,3316.8,0.15079]
[1768709101391,0.99359671,3317.5,3316.8,0.15079]
[1768709101588,0.99359671,3317.4,3316.8,0.15079]
[1768709101789,0.30849424,3317.6,3316.8,0.15079]
[1768709101991,0.99359668,3317.5,3316.8,0.15079]
[1768709102193,0.99359668,3317.4,3316.8,0.15079]
[1768709102502,0.30849424,3317.6,3316.8,0.15079]
[1768709102801,0.99359606,3317.5,3316.8,0.15079]
[1768709103001,0.99359606,3317.4,3316.8,0.15079]
[1768709103203,0.30849424,3317.6,3316.8,0.15079]
[1768709103404,0.99359444,3317.5,3316.8,0.15079]
[1768709103589,0.99359444,3317.4,3316.8,0.15079]
[1768709103907,0.30849424,3317.6,3316.8,0.15079]
[1768709104103,0.9935946,3317.5,3316.8,0.15079]
[1768709104408,0.9935946,3317.4,3316.8,0.15079]
[1768709104700,0.30849424,3317.6,3316.8,0.15079]
[1768709104901,0.99359413,3317.5,3316.8,0.15079]
[1768709105100,0.99359413,3317.4,3316.8,0.15079]
[1768709105306,0.30849424,3317.6,3316.8,0.15079]
[1768709105606,0.99359376,3317.5,3316.8,0.15079]
[1768709105806,0.99359376,3317.4,3316.8,0.15079]
[1768709105999,0.30849424,3317.6,3316.8,0.15079]
[1768709106298,0.9935938,3317.5,3316.8,0.15079]
[1768709106596,0.9935938,3317.4,3316.8,0.15079]
[1768709106797,0.30849424,3317.6,3316.8,0.15079]
[1768709106990,0.9935941,3317.5,3316.8,0.15079]
[1768709107191,0.9935941,3317.4,3316.8,0.15079]
[1768709107406,0.30849424,3317.6,3316.8,0.15079]
[1768709107607,0.99358612,3317.5,3316.8,0.15079]
[1768709107804,0.99358612,3317.4,3316.8,0.15079]
[1768709108003,0.30849424,3317.6,3316.8,0.15079]
[1768709108306,0.99359462,3317.5,3316.8,0.15079]
[1768709108605,0.99359462,3317.4,3316.8,0.15079]
[1768709108902,0.30849424,3317.6,3316.8,0.15079]
[1768709109102,0.99359625,3317.5,3316.8,0.15079]
[1768709109406,0.99359625,3317.4,3316.8,0.15079]
[1768709109606,0.30849424,3317.6,3316.8,0.15079]
[1768709109809,0.99359795,3317.5,3316.8,0.15079]
[1768709110106,0.99359795,3317.4,3316.8,0.15079]
[1768709110407,0.30140023,3317.9,3316.8,0.15079]
[1768709110608,0.99359509,3317.8,3316.8,0.15079]
[1768709110803,0.99359509,3317.7,3316.8,0.15079]
[1768709111008,0.99359509,3317.6,3316.9,0.97032516]
[1768709111208,0.99359509,3317.5,3316.9,0.97032516]
[1768709111414,0.30140023,3317.9,3316.9,0.97032516]
[1768709111611,0.99347727,3317.8,3316.9,0.97032516]
[1768709111908,0.99347727,3317.7,3316.9,0.97032516]
[1768709112108,0.99347727,3317.6,3316.9,0.97032516]
[1768709112307,0.99347727,3317.5,3316.9,0.97032516]
[1768709112512,0.30140023,3317.9,3316.9,0.97032516]
[1768709112809,0.9923109,3317.8,3316.9,0.97032516]
[1768709113005,0.9923109,3317.7,3316.9,0.97032516]
[1768709113206,0.9923109,3317.6,3316.9,0.97032516]
[1768709113400,0.9923109,3317.5,3316.9,0.97032516]
[1768709113599,0.30140023,3317.9,3316.9,0.97032516]
[1768709113813,0.98760184,3317.8,3316.9,0.97032516]
[1768709114003,0.98760184,3317.7,3316.9,0.97032516]
[1768709114203,0.98760184,3317.6,3316.9,0.97032516]
[1768709114404,0.98760184,3317.5,3316.9,0.97032516]
[1768709114610,0.30140023,3317.9,3316.9,0.97032516]
[1768709114811,0.98757235,3317.8,3316.9,0.97032516]
[1768709115008,0.98757235,3317.7,3316.9,0.97032516]
[1768709115207,0.98757235,3317.6,3316.9,0.97032516]
[1768709115508,0.98757235,3317.5,3316.9,0.97032516]
[1768709115703,0.30140023,3317.9,3316.9,0.97032516]